[Event "Turkish Second League 2019"]
[Site "Konya"]
[Date "2019.07.25"]
[Round "5"]
[White "Karaoglan, Doruk"]
[Black "Buyukasik, Diyap"]
[Result "1/2-1/2"]
[ECO "B25"]
[WhiteElo "2278"]
[BlackElo "2268"]
[Annotator "NA"]
[PlyCount "224"]
[EventDate "2019.07.22"]
[EventType "team-tourn"]
[EventCountry "TUR"]
[SourceTitle "playchess.com"]
[Source "ChessBase"]
[SourceQuality "1"]
[TimeControl "5400+30"]

1. e4 {[%emt 0:00:30]} c5 {[%emt 0:00:30]} 2. Nc3 {[%emt 0:00:30]} d6 {[%emt 0:00:30]} 3. g3 {[%emt 0:00:30]} Nc6 {[%emt 0:00:30]} 4. Bg2 {[%emt 0:00:00]} g6 {[%emt 0:00:00]} 5. d3 {[%emt 0:01:00]} Bg7 {[%emt 0:01:00]} 6. f4 {[%emt 0:00:30]} Nf6 {[%emt 0:01:30]} 7. Nf3 {[%emt 0:00:00]} O-O {[%emt 0:00:30]} 8. O-O {[%emt 0:00:00]} Rb8 {[%emt 0:00:30]} 9. h3 {[%emt 0:00:30]} b5 {[%emt 0:00:30]} 10. g4 {[%emt 0:00:00]} b4 {[%emt 0:01:30]} 11. Ne2 {[%emt 0:00:00]} Nd7 {[%emt 0:00:30]} 12. f5 {[%emt 0:07:30]} Nce5 {[%emt 0:03:30]} 13. Nf4 {[%emt 0:05:30]} Bb7 {[%emt 0:09:30]} 14. Nxe5 {[%emt 0:25:30]} dxe5 {[%emt 0:24:30]} 15. Ne2 {[%emt 0:05:30]} c4 {[%emt 0:13:30]} 16. dxc4 {[%emt 0:07:30]} Nc5 {[%emt 0:01:30]} 17. Ng3 {[%emt 0:01:30]} Qd4+ {[%emt 0:02:30]} 18. Qxd4 {[%emt 0:24:58]} exd4 {[%emt 0:00:30]} 19. Bf4 {[%emt 0:00:30]} Rbd8 {[%emt 0:00:30]} 20. e5 {[%emt 0:01:19]} Bxg2 {[%emt 0:05:30]} 21. Kxg2 {[%emt 0:00:04]} Rd7 {[%emt 0:00:30]} 22. Rae1 {[%emt 0:03:33]} d3 {[%emt 0:10:30]} 23. Be3 {[%emt 0:02:56]} Rc8 {[%emt 0:03:08]} 24. f6 {[%emt 0:01:19]} exf6 {[%emt 0:04:27]} 25. exf6 {[%emt 0:00:13]} Bf8 {[%emt 0:00:00]} 26. Bxc5 {[%emt 0:01:57]} Rxc5 {[%emt 0:00:56]} 27. cxd3 {[%emt 0:00:14]} Ra5 {[%emt 0:01:09]} 28. Ra1 {[%emt 0:06:14]} Rxd3 {[%emt 0:00:19]} 29. b3 {[%emt 0:00:52]} h5 {[%emt 0:02:55]} 30. Rf3 {[%emt 0:00:56]} Rd2+ {[%emt 0:01:26]} 31. Rf2 {[%emt 0:00:04]} Rxf2+ {[%emt 0:00:41]} 32. Kxf2 {[%emt 0:00:30]} hxg4 {[%emt 0:00:30]} 33. hxg4 {[%emt 0:00:30]} Bc5+ {[%emt 0:00:30]} 34. Kf3 {[%emt 0:00:30]} Bd4 {[%emt 0:00:30]} 35. Rd1 {[%emt 0:00:30]} Bxf6 {[%emt 0:00:00]} 36. Rd2 {[%emt 0:00:00]} Be7 {[%emt 0:01:39]} 37. Ne4 {[%emt 0:02:44]} f5 {[%emt 0:01:05]} 38. gxf5 {[%emt 0:00:03]} Rxf5+ {[%emt 0:02:40]} 39. Kg4 {[%emt 0:00:13]} Kf7 {[%emt 0:01:48]} 40. Rd7 {[%emt 0:01:26]} Ra5 {[%emt 0:00:32]} 41. Rd2 {[%emt 0:00:52]} Ke6 {[%emt 0:01:19]} 42. Kf4 {[%emt 0:00:26]} Rh5 {[%emt 0:01:20]} 43. Ke3 {[%emt 0:00:42]} Rh3+ {[%emt 0:01:12]} 44. Kd4 {[%emt 0:00:10]} Rh4 {[%emt 0:01:39]} 45. Rg2 {[%emt 0:00:59]} g5 {[%emt 0:01:32]} 46. Ke3 {[%emt 0:00:36]} Kf5 {[%emt 0:00:39]} 47. Ng3+ {[%emt 0:01:03]} Ke5 {[%emt 0:00:05]} 48. Re2 {[%emt 0:00:00]} Rf4 {[%emt 0:01:24]} 49. Kd3+ {[%emt 0:00:36]} Kd6 {[%emt 0:00:06]} 50. c5+ {[%emt 0:00:35]} Kd7 {[%emt 0:00:00]} 51. c6+ {[%emt 0:00:42]} Ke8 {[%emt 0:00:54]} 52. c7 {[%emt 0:00:42]} Rf3+ {[%emt 0:00:02]} 53. Kd4 {[%emt 0:00:27]} Rc3 {[%emt 0:00:30]} 54. Ne4 {[%emt 0:00:20]} Rxc7 {[%emt 0:00:39]} 55. Nxg5 {[%emt 0:00:05]} Rd7+ {[%emt 0:00:19]} 56. Kc4 {[%emt 0:00:51]} Rc7+ {[%emt 0:00:00]} 57. Kd4 {[%emt 0:00:00]} Rd7+ {[%emt 0:01:09]} 58. Kc4 {[%emt 0:00:00]} Rc7+ {[%emt 0:00:00]} 59. Kd3 {[%emt 0:00:31]} Kd7 {[%emt 0:01:28]} 60. Ne4 {[%emt 0:00:06]} a5 {[%emt 0:00:37]} 61. Rg2 {[%emt 0:00:07]} Rc1 {[%emt 0:00:00]} 62. Rh2 {[%emt 0:00:48]} Ra1 {[%emt 0:00:14]} 63. Kc4 {[%emt 0:00:15]} Re1 {[%emt 0:00:16]} 64. Kd3 {[%emt 0:00:23]} Rc1 {[%emt 0:00:36]} 65. Rh5 {[%emt 0:01:28]} Bd8 {[%emt 0:01:05]} 66. Rh2 {[%emt 0:00:28]} Be7 {[%emt 0:00:12]} 67. Kd4 {[%emt 0:00:27]} Rg1 {[%emt 0:00:49]} 68. Rh5 {[%emt 0:01:00]} a4 {[%emt 0:00:55]} 69. bxa4 {[%emt 0:01:30]} Rg2 {[%emt 0:00:30]} 70. Nc5+ {[%emt 0:00:00]} Bxc5+ {[%emt 0:00:51]} 71. Kxc5 {[%emt 0:00:04]} Rxa2 {[%emt 0:00:30]} 72. Kxb4 {[%emt 0:00:00]} Kc6 {[%emt 0:00:00]} 73. Rh6+ {[%emt 0:00:15]} Kb7 {[%emt 0:00:00]} 74. Ka5 {[%emt 0:00:06]} Ra1 {[%emt 0:00:00]} 75. Rh7+ {[%emt 0:00:12]} Kc6 {[%emt 0:00:47]} 76. Rh4 {[%emt 0:01:10]} Kb7 {[%emt 0:00:20]} 77. Rh7+ {[%emt 0:00:45]} Kc6 {[%emt 0:00:07]} 78. Ra7 {[%emt 0:00:00]} Ra2 {[%emt 0:00:27]} 79. Ra8 {[%emt 0:00:13]} Ra1 {[%emt 0:00:43]} 80. Rb8 {[%emt 0:00:07]} Kc7 {[%emt 0:00:33]} 81. Rb4 {[%emt 0:00:10]} Rh1 {[%emt 0:01:18]} 82. Ka6 {[%emt 0:00:20]} Rh6+ {[%emt 0:01:18]} 83. Ka7 {[%emt 0:00:08]} Rh5 {[%emt 0:00:06]} 84. Rb5 {[%emt 0:00:03]} Rh4 {[%emt 0:00:38]} 85. a5 {[%emt 0:00:06]} Rc4 {[%emt 0:00:04]} 86. a6 {[%emt 0:01:08]} Rc6 {[%emt 0:00:27]} 87. Rh5 {[%emt 0:00:27]} Rc1 {[%emt 0:00:38]} 88. Rh6 {[%emt 0:01:12]} Rc2 {[%emt 0:00:18]} 89. Rh7+ {[%emt 0:02:33]} Kc8 {[%emt 0:00:06]} 90. Ka8 {[%emt 0:00:13]} Rc1 {[%emt 0:00:22]} 91. Rb7 {[%emt 0:01:02]} Rc6 {[%emt 0:00:42]} 92. Ka7 {[%emt 0:00:32]} Rc1 {[%emt 0:00:30]} 93. Rb3 {[%emt 0:00:24]} Kc7 {[%emt 0:00:25]} 94. Rh3 {[%emt 0:00:45]} Kc8 {[%emt 0:00:31]} 95. Rh5 {[%emt 0:00:37]} Kc7 {[%emt 0:00:25]} 96. Rb5 {[%emt 0:00:23]} Rc2 {[%emt 0:00:39]} 97. Rb3 {[%emt 0:00:19]} Rc1 {[%emt 0:00:10]} 98. Rh3 {[%emt 0:00:22]} Rc2 {[%emt 0:00:22]} 99. Rh6 {[%emt 0:00:49]} Rc1 {[%emt 0:00:13]} 100. Ka8 {[%emt 0:00:13]} Rc2 {[%emt 0:00:28]} 101. Ka7 {[%emt 0:00:33]} Rc1 {[%emt 0:00:11]} 102. Rh7+ {[%emt 0:00:38]} Kc8 {[%emt 0:00:07]} 103. Kb6 {[%emt 0:00:58]} Rb1+ {[%emt 0:00:07]} 104. Ka7 {[%emt 0:00:00]} Rc1 {[%emt 0:00:04]} 105. Ka8 {[%emt 0:00:25]} Rc2 {[%emt 0:00:35]} 106. Rh4 {[%emt 0:00:38]} Rc1 {[%emt 0:00:28]} 107. Rb4 {[%emt 0:00:06]} Rc2 {[%emt 0:00:28]} 108. Ka7 {[%emt 0:00:10]} Rc1 {[%emt 0:01:27]} 109. Rb5 {[%emt 0:01:32]} Kc7 {[%emt 0:00:35]} 110. Rb7+ {[%emt 0:00:40]} Kc8 {[%emt 0:00:03]} 111. Ka8 {[%emt 0:00:00]} Rc2 {[%emt 0:00:40]} 112. Rh7 {[%emt 0:00:08]} Rc1 {[%emt 0:00:38]} 1/2-1/2

[Event "Turkish Second League 2019"]
[Site "Konya"]
[Date "2019.07.25"]
[Round "5"]
[White "Babayev, Talib"]
[Black "Tasci, Onur"]
[Result "1-0"]
[ECO "B38"]
[WhiteElo "2274"]
[BlackElo "2063"]
[Annotator "NA"]
[PlyCount "109"]
[EventDate "2019.07.22"]
[EventType "team-tourn"]
[EventCountry "TUR"]
[SourceTitle "playchess.com"]
[Source "ChessBase"]
[SourceQuality "1"]
[TimeControl "5400+30"]

1. e4 {[%emt 0:00:30]} c5 {[%emt 0:00:30]} 2. Nf3 {[%emt 0:00:30]} g6 {[%emt 0:00:00]} 3. c4 {[%emt 0:00:00]} Bg7 {[%emt 0:00:00]} 4. d4 {[%emt 0:00:00]} cxd4 {[%emt 0:00:00]} 5. Nxd4 {[%emt 0:00:30]} Nc6 {[%emt 0:00:00]} 6. Be3 {[%emt 0:00:00]} Nf6 {[%emt 0:00:00]} 7. Nc3 {[%emt 0:00:00]} O-O {[%emt 0:00:00]} 8. Be2 {[%emt 0:00:30]} d6 {[%emt 0:00:30]} 9. O-O {[%emt 0:00:00]} Bd7 {[%emt 0:00:30]} 10. Nc2 {[%emt 0:00:00]} Rc8 {[%emt 0:00:00]} 11. f3 {[%emt 0:02:30]} Na5 {[%emt 0:00:00]} 12. Na3 {[%emt 0:00:30]} Be6 {[%emt 0:01:30]} 13. b3 {[%emt 0:04:30]} Ng4 {[%emt 0:00:30]} 14. Bd4 {[%emt 0:00:30]} Bxd4+ {[%emt 0:00:30]} 15. Qxd4 {[%emt 0:00:30]} Nc6 {[%emt 0:00:30]} 16. Qd2 {[%emt 0:01:30]} Qb6+ {[%emt 0:00:30]} 17. Kh1 {[%emt 0:00:30]} Nf2+ {[%emt 0:00:30]} 18. Rxf2 {[%emt 0:00:30]} Qxf2 {[%emt 0:00:00]} 19. Nc2 {[%emt 0:00:00]} Qc5 {[%emt 0:11:00]} 20. Nd5 {[%emt 0:02:00]} a6 {[%emt 0:15:30]} 21. Nce3 {[%emt 0:06:30]} Bxd5 {[%emt 0:27:30]} 22. Nxd5 {[%emt 0:00:30]} Rfe8 {[%emt 0:02:30]} 23. Rd1 {[%emt 0:02:30]} Qf2 {[%emt 0:05:30]} 24. Nf4 {[%emt 0:14:30]} e5 {[%emt 0:03:30]} 25. Nh3 {[%emt 0:00:30]} Qh4 {[%emt 0:01:30]} 26. Bf1 {[%emt 0:07:30]} Nd4 {[%emt 0:01:30]} 27. Qb4 {[%emt 0:01:30]} Qe7 {[%emt 0:02:30]} 28. Nf2 {[%emt 0:01:30]} h5 {[%emt 0:04:30]} 29. Qd2 {[%emt 0:01:30]} Kg7 {[%emt 0:00:30]} 30. Nd3 {[%emt 0:00:30]} b5 {[%emt 0:01:30]} 31. Nb4 {[%emt 0:00:30]} Qb7 {[%emt 0:07:11]} 32. Nd5 {[%emt 0:00:30]} f6 {[%emt 0:01:15]} 33. Qf2 {[%emt 0:03:30]} b4 {[%emt 0:03:41]} 34. f4 {[%emt 0:05:30]} Rf8 {[%emt 0:01:27]} 35. h4 {[%emt 0:06:30]} a5 {[%emt 0:01:19]} 36. f5 {[%emt 0:00:30]} gxf5 {[%emt 0:00:53]} 37. exf5 {[%emt 0:00:30]} Kf7 {[%emt 0:00:56]} 38. Be2 {[%emt 0:01:30]} Rh8 {[%emt 0:01:19]} 39. Rxd4 {[%emt 0:01:30]} exd4 {[%emt 0:00:16]} 40. Qg3 {[%emt 0:00:30]} Rce8 {[%emt 0:04:23]} 41. Qg6+ {[%emt 0:02:30]} Kf8 {[%emt 0:00:36]} 42. Qxf6+ {[%emt 0:00:00]} Kg8 {[%emt 0:00:00]} 43. Qg6+ {[%emt 0:00:00]} Kf8 {[%emt 0:00:00]} 44. Qxd6+ {[%emt 0:01:30]} Kf7 {[%emt 0:01:58]} 45. Bf3 {[%emt 0:08:30]} Re1+ {[%emt 0:02:56]} 46. Kh2 {[%emt 0:00:30]} Rhe8 {[%emt 0:01:15]} 47. Bxh5+ {[%emt 0:02:30]} Kg7 {[%emt 0:00:29]} 48. f6+ {[%emt 0:05:53]} Kh6 {[%emt 0:00:27]} 49. Bxe8 {[%emt 0:00:25]} Kh7 {[%emt 0:00:38]} 50. f7 {[%emt 0:00:19]} Rf1 {[%emt 0:00:24]} 51. Nf4 {[%emt 0:01:49]} Qe4 {[%emt 0:00:31]} 52. f8=Q {[%emt 0:01:15]} Rh1+ {[%emt 0:01:00]} 53. Kxh1 {[%emt 0:00:06]} Qe1+ {[%emt 0:00:07]} 54. Kh2 {[%emt 0:00:09]} Qxh4+ {[%emt 0:00:00]} 55. Nh3 {[%emt 0:00:01]} 1-0

[Event "Turkish Second League 2019"]
[Site "Konya"]
[Date "2019.07.25"]
[Round "5"]
[White "Ozenir, Ekin Baris"]
[Black "Zor, Alber Kadir"]
[Result "1-0"]
[ECO "D20"]
[WhiteElo "2235"]
[BlackElo "2160"]
[Annotator "ChessBase"]
[PlyCount "129"]
[EventDate "2019.07.22"]
[EventType "team-tourn"]
[EventCountry "TUR"]
[SourceTitle "playchess.com"]
[Source "ChessBase"]
[SourceQuality "1"]
[TimeControl "5400+30"]

1. d4 {[%emt 0:00:30]} d5 {[%emt 0:02:30]} 2. c4 {[%emt 0:00:30]} dxc4 {[%emt 0:00:00]} 3. e4 {[%emt 0:00:00]} Nc6 {[%emt 0:01:00]} 4. d5 {[%emt 0:00:00]} Ne5 {[%emt 0:01:30]} 5. Nf3 {[%emt 0:00:30]} Nxf3+ {[%emt 0:14:30]} 6. Qxf3 {[%emt 0:04:30]} e6 {[%emt 0:06:30]} 7. Bxc4 {[%emt 0:04:30]} exd5 {[%emt 0:00:00]} 8. Bxd5 {[%emt 0:04:30]} Nf6 {[%emt 0:02:00]} 9. Bb3 {[%emt 0:05:30]} Bb4+ {[%emt 0:07:30]} 10. Nc3 {[%emt 0:07:30]} Qe7 {[%emt 0:06:30]} 11. O-O {[%emt 0:11:30]} O-O {[%emt 0:05:30]} 12. Bg5 {[%emt 0:10:30]} c6 {[%emt 0:08:30]} 13. Rfe1 {[%emt 0:05:30]} Qe5 {[%emt 0:05:30]} 14. Bf4 {[%emt 0:08:30]} Qh5 {[%emt 0:00:30]} 15. Qxh5 {[%emt 0:09:30]} Nxh5 {[%emt 0:00:30]} 16. Bd2 {[%emt 0:01:30]} Be6 {[%emt 0:05:30]} 17. e5 {[%emt 0:03:33]} Bxc3 {[%emt 0:13:36]} 18. bxc3 {[%emt 0:01:00]} g6 {[%emt 0:00:01]} 19. Rad1 {[%emt 0:09:01]} Bxb3 {[%emt 0:10:16]} 20. axb3 {[%emt 0:00:01]} f6 {[%emt 0:00:42]} 21. Bh6 {[%emt 0:05:01]} Ng7 {[%emt 0:04:48]} 22. exf6 {[%emt 0:02:27]} Rxf6 {[%emt 0:00:07]} 23. Bxg7 {[%emt 0:01:24]} Kxg7 {[%emt 0:00:02]} 24. Re7+ {[%emt 0:00:09]} Rf7 {[%emt 0:00:14]} 25. Rxf7+ {[%emt 0:00:57]} Kxf7 {[%emt 0:00:30]} 26. Rd7+ {[%emt 0:00:30]} Ke6 {[%emt 0:00:30]} 27. Rxb7 {[%emt 0:00:30]} Rd8 {[%emt 0:00:17]} 28. Kf1 {[%emt 0:02:12]} Rd1+ {[%emt 0:01:14]} 29. Ke2 {[%emt 0:00:30]} Rb1 {[%emt 0:00:02]} 30. Rxa7 {[%emt 0:00:53]} Rxb3 {[%emt 0:00:54]} 31. Rxh7 {[%emt 0:00:36]} Rxc3 {[%emt 0:00:12]} 32. Rg7 {[%emt 0:00:42]} Rc2+ {[%emt 0:01:53]} 33. Kd3 {[%emt 0:00:42]} Rxf2 {[%emt 0:01:55]} 34. Rxg6+ {[%emt 0:00:04]} Kf7 {[%emt 0:00:47]} 35. Rg5 {[%emt 0:00:21]} Ra2 {[%emt 0:00:37]} 36. h4 {[%emt 0:01:11]} Ra3+ {[%emt 0:00:42]} 37. Ke2 {[%emt 0:00:33]} Kf6 {[%emt 0:00:18]} 38. Rc5 {[%emt 0:00:36]} Kg6 {[%emt 0:00:26]} 39. Rxc6+ {[%emt 0:00:36]} Kh5 {[%emt 0:00:15]} 40. Rc4 {[%emt 0:00:03]} Rg3 {[%emt 0:01:04]} 41. Kf2 {[%emt 0:00:13]} Ra3 {[%emt 0:00:31]} 42. Kg1 {[%emt 0:00:19]} Rb3 {[%emt 0:00:33]} 43. Kh2 {[%emt 0:00:08]} Ra3 {[%emt 0:00:55]} 44. g3 {[%emt 0:00:05]} Ra1 {[%emt 0:00:00]} 45. Kg2 {[%emt 0:00:13]} Ra5 {[%emt 0:00:52]} 46. Kh3 {[%emt 0:00:08]} Ra3 {[%emt 0:00:04]} 47. Rc5+ {[%emt 0:00:06]} Kh6 {[%emt 0:00:07]} 48. h5 {[%emt 0:00:06]} Rb3 {[%emt 0:00:02]} 49. Kh4 {[%emt 0:00:13]} Rb4+ {[%emt 0:00:30]} 50. g4 {[%emt 0:00:32]} Ra4 {[%emt 0:00:30]} 51. Rc6+ {[%emt 0:00:00]} Kh7 {[%emt 0:00:00]} 52. h6 {[%emt 0:00:00]} Ra1 {[%emt 0:01:52]} 53. Kh5 {[%emt 0:00:15]} Ra2 {[%emt 0:00:36]} 54. Rc7+ {[%emt 0:00:25]} Kh8 {[%emt 0:00:13]} 55. g5 {[%emt 0:00:30]} Ra5 {[%emt 0:00:31]} 56. Re7 {[%emt 0:00:48]} Kg8 {[%emt 0:00:49]} 57. Kg6 {[%emt 0:01:01]} Ra6+ {[%emt 0:00:12]} 58. Kf5 {[%emt 0:00:18]} Ra1 {[%emt 0:00:48]} 59. Kf6 {[%emt 0:00:30]} Rf1+ {[%emt 0:00:30]} 60. Kg6 {[%emt 0:00:29]} Rf8 {[%emt 0:00:15]} 61. Kh5 {[%emt 0:00:44]} Rf1 {[%emt 0:00:33]} 62. Ra7 {[%emt 0:00:00]} Rb1 {[%emt 0:00:15]} 63. Ra8+ {[%emt 0:00:13]} Kf7 {[%emt 0:00:21]} 64. g6+ {[%emt 0:00:39]} Kf6 {[%emt 0:00:04]} 65. Rf8+ {[%emt 0:00:00]} 1-0

[Event "Turkish Second League 2019"]
[Site "Konya"]
[Date "2019.07.25"]
[Round "5"]
[White "Kara, Yanki"]
[Black "Metin, Mehmet"]
[Result "0-1"]
[ECO "A35"]
[WhiteElo "2193"]
[BlackElo "2150"]
[Annotator "NA"]
[PlyCount "44"]
[EventDate "2019.07.22"]
[EventType "team-tourn"]
[EventCountry "TUR"]
[SourceTitle "playchess.com"]
[Source "ChessBase"]
[SourceQuality "1"]
[TimeControl "5400+30"]

1. Nf3 {[%emt 0:01:30]} c5 {[%emt 0:01:30]} 2. c4 {[%emt 0:00:30]} Nc6 {[%emt 0:00:30]} 3. Nc3 {[%emt 0:00:30]} e5 {[%emt 0:00:30]} 4. e3 {[%emt 0:00:30]} f5 {[%emt 0:00:00]} 5. d4 {[%emt 0:00:30]} e4 {[%emt 0:00:00]} 6. d5 {[%emt 0:01:30]} exf3 {[%emt 0:10:30]} 7. dxc6 {[%emt 0:00:30]} dxc6 {[%emt 0:00:30]} 8. Qxf3 {[%emt 0:02:30]} Nf6 {[%emt 0:00:30]} 9. Be2 {[%emt 0:08:30]} Bd6 {[%emt 0:02:30]} 10. h3 {[%emt 0:02:30]} O-O {[%emt 0:01:30]} 11. g3 {[%emt 0:09:30]} Qe7 {[%emt 0:07:30]} 12. Bd3 {[%emt 0:04:30]} Be5 {[%emt 0:16:30]} 13. Bd2 {[%emt 0:02:30]} Ne4 {[%emt 0:00:30]} 14. Rc1 {[%emt 0:05:30]} Nxd2 {[%emt 0:12:30]} 15. Kxd2 {[%emt 0:00:30]} Be6 {[%emt 0:00:00]} 16. Qe2 {[%emt 0:07:30]} b5 {[%emt 0:08:00]} 17. cxb5 {[%emt 0:02:30]} cxb5 {[%emt 0:00:30]} 18. Bxb5 {[%emt 0:01:30]} Rab8 {[%emt 0:17:02]} 19. b3 {[%emt 0:03:30]} Qd8+ {[%emt 0:00:59]} 20. Bd3 {[%emt 0:12:30]} c4 {[%emt 0:00:11]} 21. bxc4 {[%emt 0:00:30]} Rb2+ {[%emt 0:00:51]} 22. Rc2 {[%emt 0:00:30]} Qa5 {[%emt 0:00:00]} 0-1

[Event "Turkish Second League 2019"]
[Site "Konya"]
[Date "2019.07.25"]
[Round "5"]
[White "Alumert, Orkun Efe"]
[Black "Kizilkus, Akin"]
[Result "0-1"]
[ECO "A49"]
[WhiteElo "2151"]
[BlackElo "2162"]
[Annotator "NA"]
[PlyCount "88"]
[EventDate "2019.07.22"]
[EventType "team-tourn"]
[EventCountry "TUR"]
[SourceTitle "playchess.com"]
[Source "ChessBase"]
[SourceQuality "1"]
[TimeControl "5400+30"]

1. Nf3 {[%emt 0:00:30]} Nf6 {[%emt 0:00:30]} 2. g3 {[%emt 0:00:30]} g6 {[%emt 0:00:30]} 3. b3 {[%emt 0:00:30]} Bg7 {[%emt 0:00:30]} 4. Bb2 {[%emt 0:00:00]} O-O {[%emt 0:00:30]} 5. Bg2 {[%emt 0:00:00]} d6 {[%emt 0:00:00]} 6. d4 {[%emt 0:00:30]} c5 {[%emt 0:01:00]} 7. O-O {[%emt 0:02:30]} cxd4 {[%emt 0:00:00]} 8. Nxd4 {[%emt 0:01:30]} d5 {[%emt 0:00:00]} 9. Na3 {[%emt 0:03:30]} e5 {[%emt 0:04:30]} 10. Nf3 {[%emt 0:00:30]} e4 {[%emt 0:05:30]} 11. Nd4 {[%emt 0:01:30]} Re8 {[%emt 0:18:30]} 12. c4 {[%emt 0:30:30]} a6 {[%emt 0:07:30]} 13. cxd5 {[%emt 0:07:30]} Nxd5 {[%emt 0:03:30]} 14. e3 {[%emt 0:01:30]} b5 {[%emt 0:11:30]} 15. Qd2 {[%emt 0:03:30]} Bb7 {[%emt 0:00:30]} 16. Rac1 {[%emt 0:03:30]} Qb6 {[%emt 0:03:30]} 17. Nac2 {[%emt 0:08:30]} Nd7 {[%emt 0:05:30]} 18. Rfd1 {[%emt 0:02:30]} Rad8 {[%emt 0:10:30]} 19. Nb4 {[%emt 0:03:30]} Nxb4 {[%emt 0:02:30]} 20. Qxb4 {[%emt 0:00:30]} Ne5 {[%emt 0:00:30]} 21. Qc5 {[%emt 0:00:30]} Qxc5 {[%emt 0:00:30]} 22. Rxc5 {[%emt 0:00:30]} Ba8 {[%emt 0:00:30]} 23. Bf1 {[%emt 0:00:30]} Nf3+ {[%emt 0:00:30]} 24. Kg2 {[%emt 0:00:30]} Nxd4 {[%emt 0:00:30]} 25. Bxd4 {[%emt 0:00:30]} Bxd4 {[%emt 0:00:30]} 26. Rxd4 {[%emt 0:00:30]} Rxd4 {[%emt 0:00:30]} 27. exd4 {[%emt 0:00:30]} Rd8 {[%emt 0:00:30]} 28. Rc1 {[%emt 0:00:30]} Kg7 {[%emt 0:00:30]} 29. Rd1 {[%emt 0:00:30]} Rc8 {[%emt 0:00:30]} 30. Kg1 {[%emt 0:00:30]} Bd5 {[%emt 0:00:30]} 31. Rd2 {[%emt 0:00:30]} Rc1 {[%emt 0:15:16]} 32. f3 {[%emt 0:22:54]} exf3 {[%emt 0:01:06]} 33. Kf2 {[%emt 0:00:00]} f5 {[%emt 0:00:44]} 34. a4 {[%emt 0:00:12]} bxa4 {[%emt 0:01:35]} 35. bxa4 {[%emt 0:00:01]} Ra1 {[%emt 0:00:35]} 36. Bxa6 {[%emt 0:00:34]} Rxa4 {[%emt 0:00:05]} 37. Bb5 {[%emt 0:00:50]} Rb4 {[%emt 0:00:07]} 38. Bd7 {[%emt 0:00:37]} Kf6 {[%emt 0:00:21]} 39. h4 {[%emt 0:00:07]} Ke7 {[%emt 0:00:59]} 40. Bc8 {[%emt 0:00:17]} Ra4 {[%emt 0:00:32]} 41. g4 {[%emt 0:00:32]} Kd8 {[%emt 0:00:25]} 42. Rc2 {[%emt 0:00:26]} Be4 {[%emt 0:01:36]} 43. Rc1 {[%emt 0:00:31]} f4 {[%emt 0:00:40]} 44. g5 {[%emt 0:00:35]} Ra2+ {[%emt 0:00:13]} 0-1

[Event "Turkish Second League 2019"]
[Site "Konya"]
[Date "2019.07.25"]
[Round "5"]
[White "Tepe, Efe Can"]
[Black "Demirag, Gokhan"]
[Result "1/2-1/2"]
[ECO "B91"]
[WhiteElo "2150"]
[BlackElo "1974"]
[Annotator "NA"]
[PlyCount "73"]
[EventDate "2019.07.22"]
[EventType "team-tourn"]
[EventCountry "TUR"]
[SourceTitle "playchess.com"]
[Source "ChessBase"]
[SourceQuality "1"]
[TimeControl "5400+30"]

1. e4 {[%emt 0:00:30]} c5 {[%emt 0:00:30]} 2. Nf3 {[%emt 0:01:30]} d6 {[%emt 0:00:00]} 3. d4 {[%emt 0:00:30]} cxd4 {[%emt 0:00:00]} 4. Nxd4 {[%emt 0:00:00]} Nf6 {[%emt 0:00:30]} 5. Nc3 {[%emt 0:00:00]} a6 {[%emt 0:00:00]} 6. g3 {[%emt 0:06:30]} e5 {[%emt 0:01:00]} 7. Nde2 {[%emt 0:01:30]} Nbd7 {[%emt 0:00:30]} 8. Bg2 {[%emt 0:04:30]} b5 {[%emt 0:00:30]} 9. O-O {[%emt 0:00:00]} Bb7 {[%emt 0:00:30]} 10. Nd5 {[%emt 0:03:00]} Nxd5 {[%emt 0:02:30]} 11. exd5 {[%emt 0:00:00]} Be7 {[%emt 0:00:30]} 12. f4 {[%emt 0:07:00]} O-O {[%emt 0:00:30]} 13. Kh1 {[%emt 0:00:30]} Rc8 {[%emt 0:04:30]} 14. fxe5 {[%emt 0:10:30]} dxe5 {[%emt 0:02:30]} 15. Nc3 {[%emt 0:06:30]} f5 {[%emt 0:00:30]} 16. d6 {[%emt 0:05:30]} Bxg2+ {[%emt 0:01:30]} 17. Kxg2 {[%emt 0:00:30]} Bg5 {[%emt 0:00:30]} 18. Qd5+ {[%emt 0:01:30]} Kh8 {[%emt 0:00:30]} 19. Bxg5 {[%emt 0:16:30]} Qxg5 {[%emt 0:00:00]} 20. Qe6 {[%emt 0:00:00]} b4 {[%emt 0:11:00]} 21. Qxd7 {[%emt 0:01:00]} bxc3 {[%emt 0:00:30]} 22. b3 {[%emt 0:00:00]} Rcd8 {[%emt 0:00:30]} 23. Qe6 {[%emt 0:01:00]} Qd2+ {[%emt 0:00:30]} 24. Rf2 {[%emt 0:00:30]} Qxd6 {[%emt 0:00:00]} 25. Qxd6 {[%emt 0:00:30]} Rxd6 {[%emt 0:00:00]} 26. Re1 {[%emt 0:00:00]} Rd5 {[%emt 0:00:30]} 27. Re3 {[%emt 0:00:00]} g5 {[%emt 0:19:30]} 28. Rxc3 {[%emt 0:01:30]} f4 {[%emt 0:01:30]} 29. gxf4 {[%emt 0:05:30]} exf4 {[%emt 0:00:30]} 30. Kf3 {[%emt 0:06:30]} Re5 {[%emt 0:02:30]} 31. Kg4 {[%emt 0:02:41]} Kg7 {[%emt 0:08:30]} 32. Kh5 {[%emt 0:00:19]} Rf6 {[%emt 0:01:30]} 33. Rc7+ {[%emt 0:00:30]} Kg8 {[%emt 0:01:30]} 34. Rc8+ {[%emt 0:05:09]} Kg7 {[%emt 0:00:30]} 35. Rc7+ {[%emt 0:00:11]} Kg8 {[%emt 0:01:30]} 36. Rc8+ {[%emt 0:10:40]} Kg7 {[%emt 0:00:30]} 37. Rc7+ {[%emt 0:00:04]} 1/2-1/2